Cogmind - Beta 12 @@@ ROGUE MODE // 2023.07.07 @ 23:55:21 Player: Ducky.Jr Result: Destroyed by G-34 Mercenary with Small Laser Performance ------------- Evolutions (1) 500 Regions Visited (3) 600 Robots Destroyed (11) 55 Value Destroyed (422) 422 Prototype IDs (3) 60 Alien Tech Used (0) 0 Bonus (0) 0 TOTAL SCORE: 1637 Bonus ------- None Cogmind --------- Core Integrity 0/400 Matter 213/300 Energy 100/100 System Corruption 3% Temperature Cool (6) Movement Flying (315) Ox4 Location -9/Materials Parts ------- > --- POWER (2) -------- (None) > --- PROPULSION (2) --- Improved VTOL Module > --- UTILITY (3) ------ Large Storage Unit > --- WEAPON (2) ------- Assault Rifle > --- INVENTORY (15) --- EM Pulse Gun Heavy Particle Cannon Peak State ------------ > --- POWER ------------ (None) > --- PROPULSION ------- Improved VTOL Module Improved VTOL Module > --- UTILITY ---------- Large Storage Unit High-capacity Battery Weapon Shielding > --- WEAPON ----------- Heavy Particle Cannon Assault Rifle > --- INVENTORY -------- EM Pulse Gun EM Pulse Gun EM Shotgun Datajack [Rating: 15] Favorites ----------- Power Ion Engine Engine Ion Engine Propulsion Light Treads Treads Light Treads Wheel Wheel Flight Unit Improved VTOL Module Utility Large Storage Unit Device Cooling System Storage Large Storage Unit Processor Targeting Computer Protection Light Armor Plating Weapon EM Pulse Gun Energy Gun EM Pulse Gun Energy Cannon Heavy Particle Cannon Ballistic Gun Heavy Battle Rifle Launcher Grenade Launcher Build | -11 -10 -10 -9 ------- Run | Jun Mat Min Mat Slots Evolved 2 | . . . 2 Power 1 | . . . 1 Propulsion . | . . . . Utility 1 | . . . 1 Weapon . | . . . . Parts Attached 30 | 9 6 2 13 Power 3 | 1 1 . 1 Engine 3 | 1 1 . 1 Core . | . . . . Reactor . | . . . . Propulsion 10 | 4 2 . 4 Treads 6 | 2 2 . 2 Leg . | . . . . Wheel 2 | 2 . . . Hover . | . . . . Flight 2 | . . . 2 Utility 8 | 1 2 . 5 Device 1 | . . . 1 Storage 3 | 1 1 . 1 Processor 1 | . . . 1 Hackware . | . . . . Protection 3 | . 1 . 2 Artifact . | . . . . Weapon 9 | 3 1 2 3 Energy Gun 3 | 2 . . 1 Energy Cannon 1 | . . . 1 Ballistic Gun 4 | 1 . 2 1 Ballistic Cannon . | . . . . Launcher 1 | . 1 . . Special Weapon . | . . . . Impact Weapon . | . . . . Slashing Weapon . | . . . . Piercing Weapon . | . . . . Special Melee Weapon . | . . . . Unidentified Prototypes 1 | . . . 1 Parts Lost 13 | . . . 13 Power 2 | . . . 2 Propulsion 3 | . . . 3 Utility 5 | . . . 5 Weapon 3 | . . . 3 Highest Loss Streak 5 | . . . 5 To Critical Strikes . | . . . . Average Slot Usage (%) 90 | . 90 100 81 Engine 13 | . 14 14 12 Treads 23 | . 28 28 16 Flight 1 | . . . 4 Storage 14 | . 15 14 13 Processor 1 | . . . 5 Protection 8 | . 3 14 7 Energy Gun 8 | . 26 . 1 Ballistic Gun 8 | . . 14 9 Launcher 8 | . 1 14 7 Naked Turns . | . . . . Heaviest Build 38 | 14 34 35 38 Greatest Support 40 | 40 40 40 40 Greatest Overweight (x) 5 | . . . 5 Average Overweight (x) . | . . . . Largest Inventory Capacity 15 | 8 15 15 15 Average Capacity 13 | 6 10 15 15 Most Carried 12 | 4 9 12 11 Average Carried 7 | 3 6 9 9 Final Capacity 15 | 8 15 15 15 Final Carried 12 | 4 9 12 2 Class Distribution -------------------- 100% | Mutant Dominant Class ---------------- Mutant | -10/Materials Mutant | -10/Mines Mutant | -9/Materials Resources | -11 -10 -10 -9 ----------- Run | Jun Mat Min Mat Matter Collected 515 | 197 194 13 111 Remotely . | . . . . Salvage Created 390 | . 162 . 228 Parts 16 | . 7 . 9 Haulers Intercepted . | . . . . Recyclers Shooed 1 | . . . 1 Parts Field Recycled . | . . . . Retrieved Matter . | . . . . Parts Self-Destructed . | . . . . Prevented . | . . . . Kills | -11 -10 -10 -9 ------- Run | Jun Mat Min Mat Combat Hostiles Destroyed 11 | . 4 . 7 Guns 5 | . 2 . 3 AOE 5 | . 1 . 4 Classes Destroyed 2 | . 1 . 1 Grunt 10 | . 4 . 6 Brawler 1 | . . . 1 Best Kill Streak 4 | . 1 . 4 Combat Bots Only 4 | . 1 . 4 Max Kills in Single Turn 2 | . 1 . 2 Gunslinging . | . . . . Exploded 2 | . 1 . 2 Melee . | . . . . Uniques/NPCs Destroyed . | . . . . Combat | -11 -10 -10 -9 -------- Run | Jun Mat Min Mat Damage Taken 2327 | . 428 12 1887 Core 496 | . 87 . 409 Absorbed by Shields . | . . . . Redirected to Shielding 50 | . . . 50 Core Remaining (%) 82 | 100 . 65 . Volleys Fired 37 | . 16 . 21 Largest 2 | . 2 . 2 Hottest 80 | . 80 . 65 Shots Fired 55 | . 30 . 25 Gun 50 | . 28 . 22 Cannon . | . . . . Launcher 5 | . 2 . 3 Special . | . . . . Kinetic 18 | . . . 18 Thermal . | . . . . Explosive 5 | . 2 . 3 Electromagnetic 32 | . 28 . 4 Robot Hit Streak 8 | . 7 . 8 Robot Miss Streak 3 | . 3 . 2 Penetration Max . | . . . . Secondary Targets . | . . . . Shots Hit Robots 40 | . 21 . 19 Core Hits 15 | . 5 . 10 Critical Kills . | . . . . Critical Parts Destroyed 1 | . . . 1 Critical Strikes 2 | . 1 . 1 Destroy 1 | . . . 1 Corrupt 1 | . 1 . . Melee Attacks . | . . . . Impact . | . . . . Slashing . | . . . . Piercing . | . . . . Sneak Attacks . | . . . . Combat Hostiles . | . . . . Follow-up Attacks . | . . . . Damage Inflicted 1067 | . 461 . 606 Guns 571 | . 260 . 311 Cannons . | . . . . Explosions 496 | . 201 . 295 Melee . | . . . . Ramming . | . . . . Kinetic 262 | . . . 262 Thermal 130 | . 130 . . Explosive 366 | . 71 . 295 Electromagnetic 309 | . 260 . 49 Impact . | . . . . Slashing . | . . . . Piercing . | . . . . Highest Corruption 3 | . . . 3 Average Corruption 3 | . . . 3 Corruption Purged . | . . . . Corruption Blocked . | . . . . Effects 3 | . . . 3 Message Errors 1 | . . . 1 Matter Fused 1 | . . . 1 Data Loss (minor) 1 | . . . 1 Overload Shots . | . . . . Overflow Damage . | . . . . Projectiles . | . . . . Explosions . | . . . . Melee . | . . . . Knockbacks . | . . . . Impact . | . . . . Kinetic . | . . . . Secondary . | . . . . Self-Inflicted Damage 109 | . 45 . 64 Shots 4 | . 1 . 3 Rammed . | . . . . Targets Rammed . | . . . . Kicked . | . . . . Crushed . | . . . . Highest Temperature 288 | . 288 . 97 Average Temperature 80 | . 107 . 36 Received Heat Transfer 1089 | . 213 . 876 Siege Activations . | . . . . Robots Corrupted 1 | . 1 . . Combat Hostiles 1 | . 1 . . Parts Fried . | . . . . Impact Corruptions . | . . . . Robots Melted . | . . . . Combat Hostiles . | . . . . Parts Melted . | . . . . Heat Transferred 150 | . 150 . . Parts Sabotaged . | . . . . Parts Stolen . | . . . . Parts Stripped . | . . . . Power Chain Reactions 1 | . 1 . . Missiles Intercepted . | . . . . Alert | -11 -10 -10 -9 ------- Run | Jun Mat Min Mat Peak Influence 242 | . 216 84 242 Initial 84 | . . 84 32 Average 92 | . 88 84 126 Maximum Alert Level 1 | . 1 . 1 Low Security (%) 90 | 100 89 100 79 Level 1 9 | . 10 . 20 Level 2 . | . . . . Level 3 . | . . . . Level 4 . | . . . . Level 5 . | . . . . High Security . | . . . . Max Security . | . . . . Squads Dispatched 3 | . 2 . 1 Investigation 1 | . 1 . . Extermination . | . . . . Reinforcement 2 | . 1 . 1 Assault . | . . . . Garrison . | . . . . Intercept . | . . . . Searches Triggered . | . . . . Construction Impeded . | . . . . Haulers Reinforced . | . . . . Active Scanning Responses . | . . . . Cargo Convoy Interrupts . | . . . . Stealth | -11 -10 -10 -9 --------- Run | Jun Mat Min Mat Distress Signals . | . . . . Communications Jammed . | . . . . Distress Signals . | . . . . Times Spotted 36 | . 12 3 21 Peak Tracking Total 7 | . 5 3 7 Tactical Retreats 2 | . 1 . 1 Traps | -11 -10 -10 -9 ------- Run | Jun Mat Min Mat Traps Triggered 1 | . 1 . . Indirectly . | . . . . Trap Hack Attempts . | . . . . Triggered . | . . . . Disarmed . | . . . . Reprogrammed . | . . . . Reused . | . . . . Traps Extracted . | . . . . Installed . | . . . . Triggered . | . . . . Machines | -11 -10 -10 -9 ---------- Run | Jun Mat Min Mat Machines Disabled 2 | . 1 . 1 Max in Single Turn 1 | . 1 . 1 Machines Repaired . | . . . . Machines Sabotaged . | . . . . Overloaded Fab Kills . | . . . . Hacking | -11 -10 -10 -9 --------- Run | Jun Mat Min Mat Machines Accessed 1 | . . . 1 Terminals 1 | . . . 1 Fabricators . | . . . . Repair Stations . | . . . . Recycling Units . | . . . . Scanalyzers . | . . . . Garrison Access . | . . . . Total Hacks 4 | . . . 4 Successful 2 | . . . 2 Failed 2 | . . . 2 Catastrophic 1 | . . . 1 Database Lockouts . | . . . . Manual . | . . . . Terminals 4 | . . . 4 Fabricators . | . . . . Repair Stations . | . . . . Recycling Units . | . . . . Scanalyzers . | . . . . Garrison Access . | . . . . Terminal Hacks 2 | . . . 2 Robot Analysis 1 | . . . 1 Prototype ID Bank 1 | . . . 1 Fabricator Hacks . | . . . . Repair Station Hacks . | . . . . Recycling Unit Hacks . | . . . . Scanalyzer . | . . . . Garrison Access Hacks . | . . . . Unauthorized Hacks . | . . . . Terminals . | . . . . Fabricators . | . . . . Repair Stations . | . . . . Recycling Units . | . . . . Scanalyzers . | . . . . Garrison Access . | . . . . Data Cores Recovered . | . . . . Used . | . . . . Hacking Detections 1 | . . . 1 Full Trace Events 1 | . . . 1 Feedback Events . | . . . . Feedback Blocked . | . . . . Robot Schematics Acquired . | . . . . Robots Built . | . . . . Authchips . | . . . . Time . | . . . . Total Robot Build Rating . | . . . . Part Schematics Acquired . | . . . . Parts Built . | . . . . Authchips . | . . . . Time . | . . . . Total Part Build Rating . | . . . . Parts Repaired . | . . . . Time . | . . . . Parts Recycled . | . . . . Recycled Matter . | . . . . Retrieved Matter . | . . . . Retrieved Components . | . . . . Parts Scanalyzed . | . . . . Part Schematics Acquired . | . . . . Parts Damaged . | . . . . Bothacking | -11 -10 -10 -9 ------------ Run | Jun Mat Min Mat Used RIF Installer . | . . . . Robots Hacked . | . . . . Non-combat . | . . . . Combat . | . . . . Robot Hacks Applied . | . . . . Relay Couplers Released . | . . . . Fabnet Peak Effective % . | . . . . Robots Rewired . | . . . . Allies Hacked . | . . . . Hacks Repelled . | . . . . Allies | -11 -10 -10 -9 -------- Run | Jun Mat Min Mat Total Allies . | . . . . Largest Group . | . . . . Highest-Rated Group . | . . . . Highest-Rated Ally . | . . . . Total Orders . | . . . . Ally Attacks . | . . . . Total Damage . | . . . . Kills . | . . . . Allies Corrupted . | . . . . Allies Melted . | . . . . Intel | -11 -10 -10 -9 ------- Run | Jun Mat Min Mat Robot Analysis Total 1 | . . . 1 Derelict Logs Recovered 1 | . . 1 . Drone Launches . | . . . . Drone Recoveries . | . . . . Exploration | -11 -10 -10 -9 ------------- Run | Jun Mat Min Mat Turns Passed 1270 | 109 352 388 421 Spaces Moved 678 | 61 168 239 210 Core 6 | 6 . . . Treads 633 | 49 168 239 177 Legs . | . . . . Wheels 6 | 6 . . . Hover . | . . . . Flight 33 | . . . 33 Fastest Speed 50 | 50 160 160 160 Average Speed 161 | 142 160 160 168 Slowest Speed 385 | 160 160 160 385 Overloaded Moves . | . . . . Propulsion Burnouts . | . . . . Robots Hopped . | . . . . Cave-ins Triggered . | . . . . Exploration Rate (%) 31 | 4 36 62 23 Regions Visited 3 Branch Regions 1 Pre-discovered Areas . | . . . . Known Exits Taken . | . . . . Unknown Exits Taken 3 | 1 1 1 . Scrap Searched 1 | . . 1 . Spaces Dug . | . . . . Terrain Destroyed 25 | . 15 . 10 Melee . | . . . . Projectile 1 | . . . 1 AOE 24 | . 15 . 9 Terrain Rammed . | . . . . Walls Destroyed . | . . . . Machines Disabled . | . . . . Actions | -11 -10 -10 -9 --------- Run | Jun Mat Min Mat Total 801 | 82 222 244 253 Wait 18 | 4 13 1 . Move 675 | 60 167 238 210 Hop . | . . . . Pick Up 22 | 4 12 3 3 Fast Attach 12 | 8 2 . 2 Attach 8 | 1 . . 7 Detach 3 | 3 . . . Swap 10 | . 4 2 4 Drop 16 | 2 8 . 6 Fire 37 | . 16 . 21 Melee . | . . . . Ram . | . . . . Kick . | . . . . Crush . | . . . . Escape Stasis . | . . . . Rewire . | . . . . Trap . | . . . . Miscellaneous . | . . . . Route ------- -11/Junkyard -10/Materials (discovered 2 exits: *Mat / [*Min]) -10/Mines -9/Materials (discovered 1 exit: Mat) History --------- Turn | Location | Event 12 | -11/Junkyard | Discovered new exit (range 14) 110 | -11/Junkyard | Entered Materials 196 | -10/Materials | Discovered new exit (range 12) 305 | -10/Materials | Build established: Mutant 410 | -10/Materials | Discovered new exit (range 15) 462 | -10/Materials | Entered Mines 740 | -10/Mines | A weapon hastily lodged in a ceiling crevice suddenly fell to the ground 807 | -10/Mines | Learned 2 Materials zone layouts 837 | -10/Mines | Discovered new exit (range 9) 850 | -10/Mines | Entered Materials 850 | -9/Materials | Evolved 2 slots: Power x1, Utility x1 851 | -9/Materials | Identified exit to Materials 1134 | -9/Materials | Lost 4 parts (2p2u) 1179 | -9/Materials | Core integrity fell below 50% 1216 | -9/Materials | Core integrity fell below 20% 1220 | -9/Materials | Lost 5 parts (2n1u2w) 1271 | -9/Materials | Destroyed by G-34 Mercenary with Small Laser Last Messages --------------- 01178_ G-34 Mercenary destroyed. 01181_ Critical hit (Burn: +37). 01187_ Lgt. Treads destroyed. 01188_ Identified Imp. VTOL Module. 01189_ Cooling System destroyed. 01192_ Critical hit (Burn: +37). 01198_ Dropped Med. Matter Pod. 01199_ Extracted 25 matter. 01200_ Dropped Lgt. Armor Plating. 01201_ System corrupted: Matter fused (-8). 01203_ Dropped EM Pulse Gun. 01203_ Dropped Datajack. 01213_ G-34 Mercenary destroyed. 01223_ B-36 Bruiser suffers critical hit (Burn). 01224_ K-01 Serf collects debris. 01246_ Knocked back. 01264_ EM Shotgun destroyed. 01264_ Imp. VTOL Module destroyed. 01268_ Weapon Shielding destroyed. 01270_ Hcp. Battery destroyed. Map ----- +----------------------------------------------------+ | | | | | | | | | | | | | | | | | | | | | | | | | | | | | ???????????????????????##????????????????????????? | | ??????????????????????? ????????????????????????? | | ??????????????????????? ????????????????????????? | | ?????##???????????????? ????????????????????????? | | #####"#?#######???????? ????????????????????????? | | ]]]==#??# #???######+#####???????????????????? | | ]] #??# #???# k ????????????????????? | | ==#??# #???# #??????????????#######?? | | #### [ ##### #??????????????# #?? | | ! =%= #??????????????# """ #?? | | /![ a #??????????????# """ #?? | | %#######+######## @################ """ #?? | | [#???? ??????# b + +?? | | #??# ?????# Y ########## """ #?? | | #??#! ????#g#### ###### ########## """ #?? | | ##?# ] ????# #??#g#????# # """ #?? | | #?# #???# #??# #????# # ### | | "" #?##########??# #??# #????# + # | | T #???# ?##/####g###??# # # | | #???? ?# #??# # # | | #???? ?# #??# ####### | | ##????? ??# #??# = | | #?????? ??# #??# | | #??????? ??# #??# | | #??????? ??# #??# """ """ | | #???????? ??# #??# """"" """"" | | #???????? ??# #??# """"" """"" | | ##########+######+########## """"" """"" | | """ """ | | | | | | % ##/######+###################### ######### | | ## # %%" "T" #?????????????##+##????????? | | ## # """ #??????????????????????????? | | % ## + """ #??????????????????????????? | | # # """ #??????????????????????????? | +----------------------------------------------------+ Best States ------------- Heat Dissipation 50 Energy Generation 15 Energy Capacity 350 Matter Stores 300 Matter Capacity 300 Sight Range 16 Terrain Scan Density 10 Armor Coverage 150 Weapon Shielding 33 Evasion (%) 50 Targeting Accuracy 5 Recoil Reduction 2 Item Schematics ----------------- None Robot Schematics ------------------ None Fabricated ------------ Nothing Alien Tech Used ----------------- None Achievements -------------- Power Corrupts Challenges ------------ None Game ------ Seed DisposableLaserDisintegrator Manual? 0 Play Time 00:28:25 Cumulative 5.3 hours Start 2023.07.06 @ 00:18:54 End 2023.07.07 @ 23:55:21 Sessions 10 Manual Loads 0 Difficulty Rogue Special Mode None Game No. 14 Rogue 14 Adventurer 0 Explorer 0 Win Type - Total 0 Types 0/0/0/0/0/0/0/0/0 Lore% 0 Gallery% 9 Achievement% 10 Wizard Run 0 Options --------- ASCII 0 Keyboard 0 Movement Numpad Keybinds 0 Fullscreen 2 Font 18/Terminus Map View 76x50 Tactical HUD 1 Map Filters NONE Filters NONE Steam 1 RUN: e0037246-f6b5-4bc2-9c63-ea3000c939be